Cogmind - Beta 9.3 @@@ ROGUE MODE // 2019.12.20 @ 22:40:17 // Winter2019/RPGLIKE Player: Cassie Rose Result: Destroyed by G-47 Trooper with Particle Gun Performance ------------- Evolutions (2) 1000 Regions Visited (4) 800 Robots Destroyed (68) 340 Value Destroyed (1610) 1610 Prototype IDs (2) 40 Alien Tech Used (0) 0 Bonus (254) 254 TOTAL SCORE: 4044 Bonus ------- High Alert Combat Kills 54 Entered Garrisons 200 Cogmind --------- Core Integrity 0/1000 Matter 244/300 Energy 126/180 System Corruption 2% Temperature Cool (720) Movement Treading (160) Location -8/Garrison Parts ------- > --- POWER (2) -------- Light Deuterium Engine Light Deuterium Engine > --- PROPULSION (4) --- Light Treads Light Treads Light Treads Light Treads > --- UTILITY (4) ------ Improved Heat Sink Improved Terrain Scanner Improved Terrain Scan Processor Armor Integrity Analyzer > --- WEAPON (4) ------- Advanced Beam Cannon Advanced Beam Cannon Improved Light Cannon > --- INVENTORY (0) ---- (None) Peak State ------------ > --- POWER ------------ Heavy Ion Engine Light Nuclear Core > --- PROPULSION ------- Light Treads Light Treads Light Treads Light Treads > --- UTILITY ---------- Improved Heat Sink Improved Terrain Scanner Improved Terrain Scan Processor Armor Integrity Analyzer > --- WEAPON ----------- Advanced Beam Cannon Advanced Beam Cannon Improved Light Cannon > --- INVENTORY -------- (None) [Rating: 28] Favorites ----------- Power Ion Engine Engine Ion Engine Power Core Light Nuclear Core Propulsion Light Treads Treads Light Treads Utility Improved Terrain Scanner Device Improved Terrain Scanner Processor Seismic Analyzer Weapon Light Assault Rifle Energy Cannon Advanced Beam Cannon Ballistic Gun Light Assault Rifle Ballistic Cannon Improved Light Cannon Build | -11 -10 -9 -8 -8 ------- Run | Scr Mat Mat Mat Gar Slots Evolved 10 | 5 . 5 . . Power 1 | 1 . . . . Propulsion 3 | 1 . 2 . . Utility 3 | 1 . 2 . . Weapon 3 | 2 . 1 . . Parts Attached 36 | 9 8 15 4 . Power 10 | 2 2 4 2 . Engine 9 | 2 2 3 2 . Core 1 | . . 1 . . Reactor . | . . . . . Propulsion 9 | 2 1 4 2 . Treads 9 | 2 1 4 2 . Leg . | . . . . . Wheel . | . . . . . Hover . | . . . . . Flight . | . . . . . Utility 5 | 2 . 3 . . Device 2 | 1 . 1 . . Storage . | . . . . . Processor 3 | 1 . 2 . . Hackware . | . . . . . Protection . | . . . . . Artifact . | . . . . . Weapon 12 | 3 5 4 . . Energy Gun . | . . . . . Energy Cannon 2 | . . 2 . . Ballistic Gun 8 | 3 5 . . . Ballistic Cannon 2 | . . 2 . . Launcher . | . . . . . Special Weapon . | . . . . . Impact Weapon . | . . . . . Slashing Weapon . | . . . . . Piercing Weapon . | . . . . . Special Melee Weapon . | . . . . . Unidentified Prototypes 2 | . . 2 . . Parts Lost . | . . . . . Power . | . . . . . Propulsion . | . . . . . Utility . | . . . . . Weapon . | . . . . . Highest Loss Streak . | . . . . . Average Slot Usage (%) 95 | . 99 91 92 92 Engine 15 | . 21 11 9 14 Core 2 | . . 6 4 . Treads 22 | . 22 20 28 28 Device 13 | . 11 14 14 14 Processor 11 | . 11 11 14 14 Energy Cannon 4 | . . 3 14 14 Ballistic Gun 19 | . 32 15 . . Ballistic Cannon 4 | . . 7 7 7 Naked Turns . | . . . . . Heaviest Build 27 | 10 17 27 27 24 Greatest Support 80 | 40 40 80 80 80 Greatest Overweight (x) 2 | 2 . . . . Average Overweight (x) . | . . . . . Largest Inventory Capacity . | . . . . . Average Capacity . | . . . . . Most Carried . | . . . . . Average Carried . | . . . . . Final Capacity . | . . . . . Final Carried . | . . . . . Class Distribution -------------------- 50% | Skirmisher 37% | Scavenger-Skirmisher 11% | Scavenger-Gunner Dominant Class ---------------- Skirmisher | -10/Materials Scavenger-Skirmisher | -9/Materials Scavenger-Skirmisher | -8/Materials Scavenger-Skirmisher | -8/Garrison Resources | -11 -10 -9 -8 -8 ----------- Run | Scr Mat Mat Mat Gar Matter Collected 1482 | 299 313 722 126 22 Remotely . | . . . . . Salvage Created 2179 | 104 770 756 445 104 Parts 134 | 3 55 54 15 7 Haulers Intercepted 6 | . 2 3 1 . Recyclers Shooed 1 | . 1 . . . Parts Field Recycled . | . . . . . Retrieved Matter . | . . . . . Parts Self-Destructed . | . . . . . Prevented . | . . . . . Kills | -11 -10 -9 -8 -8 ------- Run | Scr Mat Mat Mat Gar Combat Hostiles Destroyed 47 | . 16 21 5 5 Guns 28 | . 16 12 . . Cannons 19 | . . 9 5 5 Classes Destroyed 11 | 2 6 1 1 1 Worker 4 | . 2 2 . . Tunneler 2 | 1 1 . . . Hauler 6 | . 2 3 1 . Recycler 1 | 1 . . . . Operator 2 | . 1 1 . . Watcher 6 | . 2 1 3 . Swarmer 17 | . 5 9 . 3 Grunt 20 | . 11 7 2 . Brawler 1 | . . . 1 . Sentry 7 | . . 5 2 . Hunter 2 | . . . . 2 Best Kill Streak 8 | 2 8 5 3 3 Combat Bots Only 5 | . 3 5 3 3 Max Kills in Single Turn 2 | 1 2 2 2 1 Gunslinging 1 | . 1 . . . Exploded . | . . . . . Melee . | . . . . . Uniques/NPCs Destroyed . | . . . . . Combat | -11 -10 -9 -8 -8 -------- Run | Scr Mat Mat Mat Gar Damage Taken 2807 | . 906 834 330 737 Core 2234 | . 719 659 269 587 Absorbed by Shields . | . . . . . Redirected to Core 1886 | . 587 563 221 515 Core Remaining (%) 65 | 100 39 56 . . Volleys Fired 173 | 6 74 62 14 17 Largest 3 | 3 3 3 3 3 Hottest 175 | 60 60 175 175 175 Shots Fired 517 | 18 222 186 42 49 Gun 358 | 18 222 118 . . Cannon 159 | . . 68 42 49 Launcher . | . . . . . Special . | . . . . . Kinetic 451 | 18 222 180 14 17 Thermal 66 | . . 6 28 32 Explosive . | . . . . . Electromagnetic . | . . . . . Robot Hit Streak 17 | 5 8 17 12 8 Robot Miss Streak 5 | 3 5 3 5 3 Penetration Max . | . . . . . Secondary Targets 6 | . 6 . . . Max Gunslinging Chain 1 | . 1 . . . Shots Hit Robots 315 | 10 141 127 19 18 Core Hits 121 | 4 57 42 11 7 Critical Hits 14 | . 3 3 7 1 Critical Kills 8 | . 3 2 3 . Critical Parts Destroyed 6 | . . 1 4 1 Melee Attacks . | . . . . . Impact . | . . . . . Slashing . | . . . . . Piercing . | . . . . . Sneak Attacks . | . . . . . Combat Hostiles . | . . . . . Follow-up Attacks . | . . . . . Damage Inflicted 3887 | 87 1176 1786 475 363 Guns 2302 | 87 1167 1048 . . Cannons 1576 | . . 738 475 363 Explosions . | . . . . . Melee . | . . . . . Ramming 9 | . 9 . . . Kinetic 3145 | 87 1167 1703 110 78 Thermal 733 | . . 83 365 285 Explosive . | . . . . . Electromagnetic . | . . . . . Impact . | . . . . . Slashing . | . . . . . Piercing . | . . . . . Highest Corruption 3 | . . 3 2 2 Average Corruption 2 | . . 2 2 2 Corruption Purged . | . . . . . Effects 7 | . . 1 . 6 Message Errors 3 | . . . . 3 Matter Fused 1 | . . 1 . . Energy Discharges 1 | . . . . 1 Data Loss (minor) 1 | . . . . 1 Weapon Failures 1 | . . . . 1 Overload Shots . | . . . . . Overflow Damage 9 | . . 8 . 1 Projectiles 9 | . . 8 . 1 Explosions . | . . . . . Melee . | . . . . . Knockbacks 10 | . . 9 . 1 Impact . | . . . . . Kinetic 9 | . . 8 . 1 Secondary 1 | . . 1 . . Self-Inflicted Damage 77 | . . . 77 . Shots 1 | . . . 1 . Rammed 2 | . 2 . . . Targets Rammed 2 | . 2 . . . Kicked . | . . . . . Crushed . | . . . . . Highest Temperature 714 | 60 327 105 289 714 Average Temperature 97 | 23 103 25 111 185 Received Heat Transfer 1056 | . 372 306 72 306 Effects 9 | . 1 . . 8 Shutdowns 2 | . . . . 2 Energy Bleed 1 | . . . . 1 Interference 3 | . . . . 3 Matter Decay 1 | . . . . 1 Short Circuit 1 | . 1 . . . Damage (minor) 1 | . . . . 1 Siege Activations . | . . . . . Robots Corrupted . | . . . . . Combat Hostiles . | . . . . . Parts Fried . | . . . . . Impact Corruptions 1 | . . 1 . . Robots Melted . | . . . . . Combat Hostiles . | . . . . . Parts Melted . | . . . . . Heat Transferred 1332 | . . 148 666 518 Parts Sabotaged . | . . . . . Parts Stolen . | . . . . . Parts Stripped . | . . . . . Power Chain Reactions . | . . . . . Missiles Intercepted . | . . . . . Alert | -11 -10 -9 -8 -8 ------- Run | Scr Mat Mat Mat Gar Peak Influence 528 | 10 249 419 447 528 Average Influence 193 | 6 109 216 307 375 Maximum Alert Level 2 | . 1 2 2 2 Low Security (%) 58 | 100 95 42 18 . Level 1 32 | . 4 55 53 46 Level 2 9 | . . 1 27 53 Level 3 . | . . . . . Level 4 . | . . . . . Level 5 . | . . . . . High Security . | . . . . . Max Security . | . . . . . Squads Dispatched 3 | . 2 1 . . Investigation 2 | . 2 . . . Extermination . | . . . . . Reinforcement 1 | . . 1 . . Assault . | . . . . . Garrison . | . . . . . Intercept . | . . . . . Construction Impeded . | . . . . . Haulers Reinforced . | . . . . . Stealth | -11 -10 -9 -8 -8 --------- Run | Scr Mat Mat Mat Gar Distress Signals . | . . . . . Communications Jammed . | . . . . . Distress Signals . | . . . . . Times Spotted 74 | . 23 31 9 11 Peak Tracking Total 7 | . 4 7 4 7 Tactical Retreats 3 | . . 3 . . Traps | -11 -10 -9 -8 -8 ------- Run | Scr Mat Mat Mat Gar Traps Triggered 6 | . 3 2 1 . Indirectly . | . . . . . Trap Hack Attempts . | . . . . . Triggered . | . . . . . Disarmed . | . . . . . Reprogrammed . | . . . . . Reused . | . . . . . Traps Extracted . | . . . . . Installed . | . . . . . Triggered . | . . . . . Machines | -11 -10 -9 -8 -8 ---------- Run | Scr Mat Mat Mat Gar Machines Disabled 3 | . . 2 1 . Max in Single Turn 1 | . . 1 1 . Machines Sabotaged . | . . . . . Garrisons Compromised . | . . . . . Overloaded Fab Kills . | . . . . . Fab Network Shutdowns . | . . . . . Hacking | -11 -10 -9 -8 -8 --------- Run | Scr Mat Mat Mat Gar Machines Accessed 2 | . 1 . 1 . Terminals 1 | . 1 . . . Fabricators . | . . . . . Repair Stations . | . . . . . Recycling Units . | . . . . . Scanalyzers . | . . . . . Garrison Access 1 | . . . 1 . Total Hacks 2 | . 1 . 1 . Successful 2 | . 1 . 1 . Failed . | . . . . . Catastrophic . | . . . . . Database Lockouts . | . . . . . Manual . | . . . . . Terminals 1 | . 1 . . . Fabricators . | . . . . . Repair Stations . | . . . . . Recycling Units . | . . . . . Scanalyzers . | . . . . . Garrison Access 1 | . . . 1 . Terminal Hacks 1 | . 1 . . . Branch Access Points 1 | . 1 . . . Fabricator Hacks . | . . . . . Repair Station Hacks . | . . . . . Recycling Unit Hacks . | . . . . . Scanalyzer . | . . . . . Garrison Access Hacks 1 | . . . 1 . Unlock Access 1 | . . . 1 . Unauthorized Hacks . | . . . . . Terminals . | . . . . . Fabricators . | . . . . . Repair Stations . | . . . . . Recycling Units . | . . . . . Scanalyzers . | . . . . . Garrison Access . | . . . . . Data Cores Recovered 1 | . 1 . . . Used . | . . . . . Hacking Detections . | . . . . . Full Trace Events . | . . . . . Feedback Events . | . . . . . Feedback Blocked . | . . . . . Robot Schematics Acquired . | . . . . . Robots Built . | . . . . . Matter . | . . . . . Time . | . . . . . Total Robot Build Rating . | . . . . . Part Schematics Acquired . | . . . . . Parts Built . | . . . . . Matter . | . . . . . Time . | . . . . . Total Part Build Rating . | . . . . . Parts Repaired . | . . . . . Time . | . . . . . Parts Recycled . | . . . . . Recycled Matter . | . . . . . Retrieved Matter . | . . . . . Retrieved Components . | . . . . . Parts Scanalyzed . | . . . . . Part Schematics Acquired . | . . . . . Parts Damaged . | . . . . . Bothacking | -11 -10 -9 -8 -8 ------------ Run | Scr Mat Mat Mat Gar Used RIF Installer . | . . . . . Robots Hacked . | . . . . . Non-combat . | . . . . . Combat . | . . . . . Robot Hacks Applied . | . . . . . Relay Couplers Released . | . . . . . Robots Rewired . | . . . . . Allies Hacked . | . . . . . Hacks Repelled . | . . . . . Allies | -11 -10 -9 -8 -8 -------- Run | Scr Mat Mat Mat Gar Total Allies . | . . . . . Largest Group . | . . . . . Highest-Rated Group . | . . . . . Highest-Rated Ally . | . . . . . Total Orders . | . . . . . Ally Attacks . | . . . . . Total Damage . | . . . . . Kills . | . . . . . Allies Corrupted . | . . . . . Allies Melted . | . . . . . Intel | -11 -10 -9 -8 -8 ------- Run | Scr Mat Mat Mat Gar Robot Analysis Total . | . . . . . Derelict Logs Recovered . | . . . . . Drone Launches . | . . . . . Drone Recoveries . | . . . . . Exploration | -11 -10 -9 -8 -8 ------------- Run | Scr Mat Mat Mat Gar Turns Passed 3199 | 116 1253 1177 278 375 Spaces Moved 1485 | 44 635 555 114 137 Core 10 | 10 . . . . Treads 1475 | 34 635 555 114 137 Legs . | . . . . . Wheels . | . . . . . Hover . | . . . . . Flight . | . . . . . Fastest Speed 50 | 50 160 160 160 160 Average Speed 159 | 145 160 160 160 160 Slowest Speed 160 | 160 160 160 160 160 Overloaded Moves . | . . . . . Propulsion Burnouts . | . . . . . Robots Hopped . | . . . . . Cave-ins Triggered . | . . . . . Exploration Rate (%) 39 | 5 97 51 17 27 Regions Visited 4 Branch Regions . Pre-discovered Areas . | . . . . . Known Exits Taken 1 | . . . 1 . Unknown Exits Taken 3 | 1 1 1 . . Scrap Searched . | . . . . . Spaces Dug . | . . . . . Terrain Destroyed 40 | . . 1 39 . Melee . | . . . . . Projectile 3 | . . 1 2 . AOE 37 | . . . 37 . Actions | -11 -10 -9 -8 -8 --------- Run | Scr Mat Mat Mat Gar Total 1969 | 82 748 704 179 256 Wait 199 | 24 7 35 36 97 Move 1482 | 43 634 554 114 137 Hop . | . . . . . Pick Up . | . . . . . Fast Attach 27 | 9 5 11 2 . Attach . | . . . . . Detach . | . . . . . Swap 9 | . 3 4 2 . Drop 20 | . 6 10 4 . Fire 173 | 6 74 62 14 17 Melee . | . . . . . Ram . | . . . . . Kick . | . . . . . Crush 2 | . 2 . . . Escape Stasis . | . . . . . Rewire . | . . . . . Trap . | . . . . . Miscellaneous 57 | . 17 28 7 5 Route ------- -11/Scrapyard -10/Materials (discovered 4 exits: [*Mat x3] / *Min) -9/Materials (discovered 4 exits: *Mat x2 / [*Min] / [*Sto]) -8/Materials -8/Garrison History --------- Turn | Location | Event 1 | -11/Scrapyard | Upgraded with Power slot (x1) 1 | -11/Scrapyard | Upgraded with Propulsion slot (x1) 1 | -11/Scrapyard | Upgraded with Utility slot (x1) 1 | -11/Scrapyard | Upgraded with Weapon slot (x2) 23 | -11/Scrapyard | Discovered new exit (range 16) 117 | -11/Scrapyard | Entered Materials 265 | -10/Materials | Discovered new exit (range 16) 304 | -10/Materials | Build established: Skirmisher 428 | -10/Materials | Identified exit to Mines 539 | -10/Materials | Discovered new exit (range 16) 722 | -10/Materials | Reached level 2 786 | -10/Materials | Discovered new exit (range 14) 855 | -10/Materials | Core integrity fell below 50% 1010 | -10/Materials | Core integrity fell below 20% 1114 | -10/Materials | Discovered new exit (range 16) 1370 | -10/Materials | Entered another Materials area 1371 | -9/Materials | Core integrity fell below 50% 1372 | -9/Materials | Reached level 3 1653 | -9/Materials | Upgraded with Propulsion slot (x1) 1653 | -9/Materials | Upgraded with Utility slot (x2) 1701 | -9/Materials | Discovered new exit (range 12) 1738 | -9/Materials | Reached level 4 1816 | -9/Materials | Discovered new exit (range 10) 1932 | -9/Materials | Build established: Scavenger-Skirmisher 2095 | -9/Materials | Discovered new exit (range 11) 2120 | -9/Materials | Core integrity fell below 20% 2150 | -9/Materials | Reached level 5 2304 | -9/Materials | Discovered new exit (range 16) 2459 | -9/Materials | Upgraded with Propulsion slot (x1) 2459 | -9/Materials | Upgraded with Weapon slot (x1) 2466 | -9/Materials | Build established: Scavenger-Gunner 2547 | -9/Materials | Entered another Materials area 2549 | -8/Materials | Reached level 6 2599 | -8/Materials | Core integrity fell below 50% 2825 | -8/Materials | Identified exit to Garrison 2825 | -8/Materials | Entered Garrison 2827 | -8/Garrison | Reached level 7 2852 | -8/Garrison | Build established: Scavenger-Skirmisher 3099 | -8/Garrison | Triggered checkpoint 3160 | -8/Garrison | Triggered checkpoint 3195 | -8/Garrison | Core integrity fell below 20% 3200 | -8/Garrison | Destroyed by G-47 Trooper with Particle Gun Last Messages --------------- 03168_ C-30 ARC bursts open, deploying its payload. 03168_ S-10 Pest unfolds itself. 03171_ System corrupted: Adv. Beam Cannon failed to cycle. 03171_ S-10 Pest destroyed. 03174_ Destroyed Flight Unit. Garrison Door opened remotely. 03181_ S-10 Pest destroyed. Garrison Door opened remotely. 03186_ S-10 Pest suffers critical hit. 03186_ Destroyed Lgt. Ion Engine. 03192_ S-10 Pest destroyed. 03193_ Overheating: Energy bleed (-21). 03194_ Power failure, Lgt. Deuterium Engine shutdown. 03195_ Overheating: System interference. 03195_ Armor Integrity Analyzer temporarily disabled. 03195_ Adv. Beam Cannon temporarily disabled. 03195_ Imp. Heat Sink temporarily disabled. 03195_ G-47 Trooper knocked back. 03197_ Overheating: Matter decay (-34). 03198_ Overheating: Lgt. Treads damaged (-33). Map ----- +----------------------------------------------------+ | ### #####################??????????? | | ### ################?###???????????? | | ##########"##### ###############?####?? ????????? | | ########## ##### ##################??##?????????? | | ########## " ###################### ????????? | | ###########!!!## ###################### ????????? | | ################ ######################?????????? | | ################ ####################?# ????????? | | ############### ######################?????????? | | ######### * ##########?# ????????? | | ######### ##### % # ##########?????????? | | ######### ##### ######## ############ #???????? | | ######### ##### ######## ############ ????????? | | # # # ##### ############ ????????? | | ### ########## ## " ############?#???????? | | ### *##########^ ## ##### ##### ????????? | | ####"########### ## ##### ############ ?#??????? | | #### ########### ^## ##### ##CCC ###### ##??????? | | #### ########### ## ##### ## "########???????? | | #### ########### ##"#### ??????? | | #### " ??????? | | ################ ?????? | | ######################### ## ## ###???????? | | ######################### ## ##^ ####??????? | | ####################### g #?#?????? | | ####################### @ g ##??????? | | ####################### ^ g #???????? | | #################### # g # ??????? | | ?################### #### ## ## ###???????? | | #################### #### ## ## ####??????? | | ################ ; ###???????? | | ###?############ ; ? ???????? | | ################ #######[* g ##????????? | | #????##"""""#### #######==%## ## ##????????? | | ?? #?#?# ##### #######%* ## ## #?????????? | | ? ? ? #######%% #?###### ? #?????????? | | ????#???????##?#? + ######## ???????????? | | ???????????????? ####### ########? ???????????? | | ????????????????? ????### ########?????????????? | | ????????????????? ?#?#### #####????????????????? | | ??????????????????#?#???# ##?#?#???????????????? | | ???????????????????? ???? ###?#????????????????? | | ????????????????????? ? ? ??#??????????????????? | | ?????????????????????????????????????????????????? | | ?????????????????????????????????????????????????? | | ?????????????????????????????????????????????????? | | ?????????????????????????????????????????????????? | | ?????????????????????????????????????????????????? | | ?????????????????????????????????????????????????? | | ?????????????????????????????????????????????????? | +----------------------------------------------------+ Best States ------------- Heat Dissipation 39 Energy Generation 23 Energy Capacity 400 Matter Stores 300 Matter Capacity 300 Sight Range 16 Robot Scan Range 16 Terrain Scan Range 16 Terrain Scan Density 510 Evasion (%) 40 Armor Integrity Analysis 33 Recoil Reduction 4 Item Schematics ----------------- None Robot Schematics ------------------ None Fabricated ------------ Nothing Alien Tech Used ----------------- None Achievements -------------- None Challenges ------------ None RPGLIKE | -11 -10 -9 -8 -8 --------- Run | Scr Mat Mat Mat Gar Levels Raised 6 | . 1 3 1 1 XP Earned 13105 | 3000 2075 4445 2370 1215 XP Spent 10500 | 2925 . 6030 1545 . Upgrades 32 | 7 . 17 8 . Power Slot 1 | 1 . . . . Propulsion Slot 3 | 1 . 2 . . Utility Slot 3 | 1 . 2 . . Weapon Slot 3 | 2 . 1 . . Core Integrity 8 | . . 7 1 . Sensor Range 8 | 2 . 2 4 . Terrain Scan Density 4 | . . 2 2 . Ranged Accuracy 2 | . . 1 1 . Protomatter Created 402 | . 103 203 53 43 Integrity Restored 1233 | . 354 609 159 111 Core 1233 | . 354 609 159 111 Protomatter Decayed . | . . . . . Game ------ Seed MassHypervelocityCarapace Manual? 0 Play Time 00:29:19 Cumulative 76.6 hours Start 2019.12.20 @ 22:05:45 End 2019.12.20 @ 22:40:17 Sessions 1 Manual Loads 0 Difficulty Rogue Special Mode Winter2019/RPGLIKE Game No. 125 Rogue 125 Adventurer 0 Explorer 0 Win Type - Total 0 Types 0/0/0/0/0/0/0 Lore% 22 Gallery% 28 Achievement% 27 Wizard Run 0 Options --------- ASCII 0 Keyboard 0 Movement Mouse Keybinds 0 Fullscreen 2 Font 18/SmallcapsGlow Map View 76x50 Tactical HUD 1 Map Filters NONE Filters LOW_CONTRAST(13,24,33)|BRIGHTNESS(120)|SATURATION(80) Steam 1 RUN: d29a6697-50c0-46cf-a430-bfd069a033cd